[Event "Early-Titled-Tuesday-Blitz-January-16-2024"]
[Site "Chess.com"]
[Date "2024.01.16"]
[Round "3"]
[White "epiclord678"]
[Black "MasterofMasters2006"]
[Result "0-1"]
[WhiteElo "2426"]
[BlackElo "2232"]
[TimeControl "180+1"]
[EndTime "8:29:08 PST"]
[Termination "MasterofMasters2006 won by resignation"]

1. e4 {[%clk 0:03:00.9]} 1... e5 {[%clk 0:02:58.6]} 2. Nf3 {[%clk 0:03:01.1]}
2... Nc6 {[%clk 0:02:45.8]} 3. Bb5 {[%clk 0:03:01.3]} 3... a6 {[%clk 0:02:44.4]}
4. Ba4 {[%clk 0:03:01.9]} 4... Nf6 {[%clk 0:02:44.1]} 5. O-O {[%clk 0:03:02]}
5... d6 {[%clk 0:02:33.6]} 6. c3 {[%clk 0:02:58.1]} 6... Bd7 {[%clk 0:02:04.8]}
7. Re1 {[%clk 0:02:56.5]} 7... g6 {[%clk 0:01:59.1]} 8. d4 {[%clk 0:02:56.6]}
8... Bg7 {[%clk 0:01:50.3]} 9. Nbd2 {[%clk 0:02:54.7]} 9... O-O {[%clk
0:01:47.4]} 10. h3 {[%clk 0:02:52.3]} 10... Qe8 {[%clk 0:01:37.6]} 11. Bb3
{[%clk 0:02:38.9]} 11... Nh5 {[%clk 0:01:33.9]} 12. Nf1 {[%clk 0:02:36.4]} 12...
Nf4 {[%clk 0:01:31.8]} 13. Be3 {[%clk 0:02:14.9]} 13... Kh8 {[%clk 0:01:19.9]}
14. Qd2 {[%clk 0:02:13.5]} 14... f5 {[%clk 0:01:02.3]} 15. Bxf4 {[%clk
0:02:01.9]} 15... fxe4 {[%clk 0:00:57.1]} 16. Rxe4 {[%clk 0:01:56.2]} 16... Rxf4
{[%clk 0:00:55.3]} 17. Rxf4 {[%clk 0:01:54.8]} 17... exf4 {[%clk 0:00:56.2]} 18.
Ng5 {[%clk 0:01:42.3]} 18... h6 {[%clk 0:00:52.6]} 19. Nf7+ {[%clk 0:01:09.6]}
19... Kh7 {[%clk 0:00:48.1]} 20. Qxf4 {[%clk 0:01:09.6]} 20... Na5 {[%clk
0:00:41.4]} 21. Bc2 {[%clk 0:00:24.4]} 21... Be6 {[%clk 0:00:30.8]} 22. Nxd6
{[%clk 0:00:20.4]} 22... cxd6 {[%clk 0:00:18.4]} 23. Qxd6 {[%clk 0:00:21.3]}
23... Qf7 {[%clk 0:00:17.1]} 24. Ne3 {[%clk 0:00:11.4]} 24... Nc4 {[%clk
0:00:16.1]} 25. Nxc4 {[%clk 0:00:11.1]} 25... Bxc4 {[%clk 0:00:17]} 26. Qg3
{[%clk 0:00:10.6]} 26... Re8 {[%clk 0:00:14.8]} 27. h4 {[%clk 0:00:10.6]} 27...
h5 {[%clk 0:00:14]} 28. Qg5 {[%clk 0:00:08.6]} 28... Be2 {[%clk 0:00:04.4]} 29.
Rd1 {[%clk 0:00:08]} 29... Bh6 {[%clk 0:00:04.4]} 30. Qg3 {[%clk 0:00:03.5]}
30... Bxd1 {[%clk 0:00:04.7]} 31. Bxd1 {[%clk 0:00:01.6]} 31... Re1+ {[%clk
0:00:05.3]} 32. Kh2 {[%clk 0:00:01.7]} 32... Rxd1 {[%clk 0:00:06.2]} 0-1

[Event "Early-Titled-Tuesday-Blitz-January-16-2024"]
[Site "Chess.com"]
[Date "2024.01.16"]
[Round "3"]
[White "Vazabanga"]
[Black "AttilaTurzo"]
[Result "1-0"]
[WhiteElo "2693"]
[BlackElo "2479"]
[TimeControl "180+1"]
[EndTime "8:29:09 PST"]
[Termination "Vazabanga won by checkmate"]

1. d4 {[%clk 0:03:00.9]} 1... d5 {[%clk 0:02:58.8]} 2. Nf3 {[%clk 0:03:00.9]}
2... c6 {[%clk 0:02:55.5]} 3. g3 {[%clk 0:02:58.8]} 3... Bg4 {[%clk 0:02:54.7]}
4. Ne5 {[%clk 0:02:58.1]} 4... Bf5 {[%clk 0:02:54.4]} 5. Bg2 {[%clk 0:02:58.3]}
5... Nd7 {[%clk 0:02:53.9]} 6. f4 {[%clk 0:02:56.3]} 6... Ngf6 {[%clk
0:02:52.3]} 7. O-O {[%clk 0:02:55.8]} 7... e6 {[%clk 0:02:52.2]} 8. Nd2 {[%clk
0:02:54.2]} 8... Be7 {[%clk 0:02:48.7]} 9. c3 {[%clk 0:02:49.5]} 9... O-O {[%clk
0:02:43]} 10. h3 {[%clk 0:02:48.8]} 10... c5 {[%clk 0:02:35.5]} 11. e3 {[%clk
0:02:35.6]} 11... Ne4 {[%clk 0:02:30.6]} 12. g4 {[%clk 0:02:29.3]} 12... Nxd2
{[%clk 0:02:12.2]} 13. Bxd2 {[%clk 0:02:23.3]} 13... Be4 {[%clk 0:02:09.6]} 14.
Qb3 {[%clk 0:02:12.2]} 14... Bxg2 {[%clk 0:02:06.8]} 15. Kxg2 {[%clk 0:02:12.8]}
15... Rb8 {[%clk 0:02:01.7]} 16. Qa4 {[%clk 0:02:04.8]} 16... Nxe5 {[%clk
0:01:33]} 17. dxe5 {[%clk 0:02:04.7]} 17... a6 {[%clk 0:01:33.2]} 18. Rad1
{[%clk 0:02:01.6]} 18... f6 {[%clk 0:01:30.3]} 19. exf6 {[%clk 0:02:00.3]} 19...
Bxf6 {[%clk 0:01:29.6]} 20. e4 {[%clk 0:02:00.5]} 20... b5 {[%clk 0:01:28.4]}
21. Qc2 {[%clk 0:02:00.4]} 21... Qc7 {[%clk 0:01:25.7]} 22. Bc1 {[%clk
0:01:34.7]} 22... Rbd8 {[%clk 0:01:24.5]} 23. e5 {[%clk 0:01:30.9]} 23... Be7
{[%clk 0:01:24.2]} 24. Qe2 {[%clk 0:01:30.9]} 24... Qc6 {[%clk 0:01:20.7]} 25.
Qf3 {[%clk 0:01:20.8]} 25... g6 {[%clk 0:01:14]} 26. Kg1 {[%clk 0:01:10.4]}
26... Qb6 {[%clk 0:01:13.1]} 27. Rd2 {[%clk 0:01:07.8]} 27... c4+ {[%clk
0:01:06.1]} 28. Kg2 {[%clk 0:01:05.9]} 28... d4 {[%clk 0:01:06.2]} 29. cxd4
{[%clk 0:01:04.7]} 29... Rxd4 {[%clk 0:01:07.1]} 30. Rxd4 {[%clk 0:01:05]} 30...
Qxd4 {[%clk 0:01:08]} 31. Rd1 {[%clk 0:01:05.3]} 31... Qb6 {[%clk 0:00:58.2]}
32. Rd7 {[%clk 0:01:02]} 32... Rf7 {[%clk 0:00:56]} 33. Be3 {[%clk 0:00:46.5]}
33... Bc5 {[%clk 0:00:48.4]} 34. Rd6 {[%clk 0:00:27.6]} 34... Qa7 {[%clk
0:00:37.3]} 35. Rxe6 {[%clk 0:00:27.5]} 35... Bxe3 {[%clk 0:00:35]} 36. Qd5
{[%clk 0:00:25.1]} 36... Qd7 {[%clk 0:00:25.7]} 37. Rd6 {[%clk 0:00:22.7]} 37...
Qe7 {[%clk 0:00:24.7]} 38. Rd8+ {[%clk 0:00:14.3]} 38... Kg7 {[%clk 0:00:22.5]}
39. e6 {[%clk 0:00:14.8]} 39... Rf6 {[%clk 0:00:16.7]} 40. Rd7 {[%clk
0:00:14.4]} 40... Rxe6 {[%clk 0:00:15.3]} 41. Qxe6 {[%clk 0:00:14.1]} 41... Qxd7
{[%clk 0:00:14.4]} 42. Qxd7+ {[%clk 0:00:14.4]} 42... Kf6 {[%clk 0:00:11.8]} 43.
g5# {[%clk 0:00:14.4]} 1-0

[Event "Early-Titled-Tuesday-Blitz-January-16-2024"]
[Site "Chess.com"]
[Date "2024.01.16"]
[Round "3"]
[White "KSho99"]
[Black "PavelChernomordik"]
[Result "0-1"]
[WhiteElo "2193"]
[BlackElo "2421"]
[TimeControl "180+1"]
[EndTime "8:29:09 PST"]
[Termination "PavelChernomordik won on time"]

1. Nf3 {[%clk 0:03:00.9]} 1... g6 {[%clk 0:02:59.4]} 2. e4 {[%clk 0:02:56.8]}
2... Bg7 {[%clk 0:02:59.2]} 3. d4 {[%clk 0:02:56.9]} 3... d6 {[%clk 0:02:59.3]}
4. c3 {[%clk 0:02:55.8]} 4... Nf6 {[%clk 0:02:58.4]} 5. Bd3 {[%clk 0:02:55.5]}
5... c5 {[%clk 0:02:58.3]} 6. O-O {[%clk 0:02:46.7]} 6... Bg4 {[%clk 0:02:55.4]}
7. Nbd2 {[%clk 0:02:20.5]} 7... Nc6 {[%clk 0:02:51.2]} 8. h3 {[%clk 0:02:17.3]}
8... Bd7 {[%clk 0:02:46.5]} 9. d5 {[%clk 0:01:59.6]} 9... Nb8 {[%clk 0:02:44.5]}
10. a4 {[%clk 0:01:46.7]} 10... O-O {[%clk 0:02:41.2]} 11. Re1 {[%clk
0:01:41.9]} 11... Na6 {[%clk 0:02:29.9]} 12. c4 {[%clk 0:01:01.9]} 12... Nb4
{[%clk 0:02:26.3]} 13. Bb1 {[%clk 0:01:01.6]} 13... Nh5 {[%clk 0:02:21.6]} 14.
e5 {[%clk 0:00:48.2]} 14... Qc7 {[%clk 0:02:15.3]} 15. exd6 {[%clk 0:00:34.1]}
15... exd6 {[%clk 0:02:14.3]} 16. Ne4 {[%clk 0:00:31.3]} 16... Nf6 {[%clk
0:02:08.9]} 17. Ng3 {[%clk 0:00:22.2]} 17... Rfe8 {[%clk 0:02:07.7]} 18. Ra3
{[%clk 0:00:20]} 18... Rxe1+ {[%clk 0:02:04.8]} 19. Qxe1 {[%clk 0:00:20.2]}
19... Re8 {[%clk 0:02:04.9]} 20. Qd1 {[%clk 0:00:20.2]} 20... h6 {[%clk
0:01:57.6]} 21. Re3 {[%clk 0:00:19.3]} 21... Qd8 {[%clk 0:01:54.3]} 22. b3
{[%clk 0:00:18.7]} 22... Bc8 {[%clk 0:01:43.6]} 23. Rxe8+ {[%clk 0:00:18]} 23...
Qxe8 {[%clk 0:01:41.5]} 24. Bf4 {[%clk 0:00:18]} 24... Bf8 {[%clk 0:01:31.2]}
25. Qd2 {[%clk 0:00:18]} 25... Kh7 {[%clk 0:01:28.6]} 26. Kh2 {[%clk 0:00:14.1]}
26... Nd7 {[%clk 0:01:24.6]} 27. Ne4 {[%clk 0:00:12.5]} 27... Qd8 {[%clk
0:00:55.8]} 28. Nxd6 {[%clk 0:00:12.5]} 28... Bxd6 {[%clk 0:00:46.5]} 29. Bxd6
{[%clk 0:00:12.7]} 29... Qf6 {[%clk 0:00:46.7]} 30. Bg3 {[%clk 0:00:10.7]} 30...
b6 {[%clk 0:00:39.5]} 31. Qe3 {[%clk 0:00:09.6]} 31... Qd8 {[%clk 0:00:23.6]}
32. Qf4 {[%clk 0:00:08.5]} 32... Kg7 {[%clk 0:00:20.8]} 33. Qd6 {[%clk
0:00:05.4]} 33... Qe8 {[%clk 0:00:19.3]} 34. Ne5 {[%clk 0:00:05]} 34... Nf6
{[%clk 0:00:18.7]} 35. f3 {[%clk 0:00:01]} 35... Nh5 {[%clk 0:00:18.5]} 0-1

[Event "Early-Titled-Tuesday-Blitz-January-16-2024"]
[Site "Chess.com"]
[Date "2024.01.16"]
[Round "3"]
[White "semchik73"]
[Black "ScofieldMichael01"]
[Result "1-0"]
[WhiteElo "2404"]
[BlackElo "2591"]
[TimeControl "180+1"]
[EndTime "8:29:11 PST"]
[Termination "semchik73 won by checkmate"]

1. Nf3 {[%clk 0:03:00.3]} 1... Nf6 {[%clk 0:02:58.3]} 2. c4 {[%clk 0:03:00.5]}
2... g6 {[%clk 0:02:57.2]} 3. d4 {[%clk 0:03:00.9]} 3... Bg7 {[%clk 0:02:58.1]}
4. Nc3 {[%clk 0:03:01.2]} 4... O-O {[%clk 0:02:59]} 5. e4 {[%clk 0:03:01.1]}
5... d6 {[%clk 0:02:59.5]} 6. Be2 {[%clk 0:03:01.6]} 6... Nbd7 {[%clk
0:02:59.1]} 7. O-O {[%clk 0:03:01.3]} 7... e5 {[%clk 0:02:59.8]} 8. dxe5 {[%clk
0:03:00.7]} 8... dxe5 {[%clk 0:02:58]} 9. h3 {[%clk 0:02:57.6]} 9... c6 {[%clk
0:02:58]} 10. Qd6 {[%clk 0:02:56.7]} 10... Ne8 {[%clk 0:02:54.9]} 11. Qd3 {[%clk
0:02:50]} 11... Qe7 {[%clk 0:02:54.6]} 12. Rd1 {[%clk 0:02:45.4]} 12... Nc5
{[%clk 0:02:54.7]} 13. Qc2 {[%clk 0:02:44.8]} 13... a5 {[%clk 0:02:54.8]} 14.
Be3 {[%clk 0:02:40]} 14... f5 {[%clk 0:02:47.6]} 15. exf5 {[%clk 0:02:35.9]}
15... Bxf5 {[%clk 0:02:47]} 16. Bxc5 {[%clk 0:02:25.6]} 16... Qxc5 {[%clk
0:02:41.1]} 17. Qb3 {[%clk 0:02:25.9]} 17... e4 {[%clk 0:02:08.1]} 18. Na4
{[%clk 0:02:24.5]} 18... Qe7 {[%clk 0:01:55.6]} 19. Nd4 {[%clk 0:02:23.7]} 19...
Kh8 {[%clk 0:01:52]} 20. Nxf5 {[%clk 0:02:20.7]} 20... gxf5 {[%clk 0:01:50.8]}
21. Nb6 {[%clk 0:02:17.6]} 21... Rd8 {[%clk 0:01:40]} 22. Rxd8 {[%clk
0:02:17.2]} 22... Qxd8 {[%clk 0:01:40.9]} 23. Rd1 {[%clk 0:02:17.1]} 23... Qg5
{[%clk 0:01:40.6]} 24. Qg3 {[%clk 0:02:06]} 24... Qxg3 {[%clk 0:01:30.9]} 25.
fxg3 {[%clk 0:02:06]} 25... Bxb2 {[%clk 0:01:30.9]} 26. Rd7 {[%clk 0:02:06.1]}
26... Nf6 {[%clk 0:01:24.9]} 27. Rxb7 {[%clk 0:02:03.4]} 27... Be5 {[%clk
0:01:21.8]} 28. g4 {[%clk 0:01:54.3]} 28... f4 {[%clk 0:01:20.4]} 29. g5 {[%clk
0:01:53.2]} 29... Bd4+ {[%clk 0:01:14.4]} 30. Kh2 {[%clk 0:01:51.9]} 30... f3
{[%clk 0:01:05.4]} 31. gxf3 {[%clk 0:01:46.3]} 31... Nh5 {[%clk 0:01:06]} 32.
Nd7 {[%clk 0:01:39]} 32... exf3 {[%clk 0:00:41.2]} 33. Nxf8 {[%clk 0:01:24.9]}
33... fxe2 {[%clk 0:00:41.2]} 34. Re7 {[%clk 0:01:24.2]} 34... Bc5 {[%clk
0:00:33.5]} 35. Rxe2 {[%clk 0:00:56.3]} 35... Bxf8 {[%clk 0:00:32.8]} 36. Re6
{[%clk 0:00:56.1]} 36... c5 {[%clk 0:00:24.4]} 37. Ra6 {[%clk 0:00:56.2]} 37...
Kg7 {[%clk 0:00:25]} 38. Rxa5 {[%clk 0:00:56]} 38... Kg6 {[%clk 0:00:25.5]} 39.
h4 {[%clk 0:00:51.4]} 39... Nf4 {[%clk 0:00:25.5]} 40. Ra6+ {[%clk 0:00:49.1]}
40... Kh5 {[%clk 0:00:25.2]} 41. Rf6 {[%clk 0:00:48.3]} 41... Ng6 {[%clk
0:00:24.5]} 42. Kg3 {[%clk 0:00:46.4]} 42... Bg7 {[%clk 0:00:24.4]} 43. a4
{[%clk 0:00:30.3]} 43... Bxf6 {[%clk 0:00:24.5]} 44. gxf6 {[%clk 0:00:30.5]}
44... Ne5 {[%clk 0:00:25.4]} 45. a5 {[%clk 0:00:22.4]} 45... Nxc4 {[%clk
0:00:24.3]} 46. f7 {[%clk 0:00:20.3]} 46... Nxa5 {[%clk 0:00:18.4]} 47. f8=Q
{[%clk 0:00:20.1]} 47... Nb7 {[%clk 0:00:16.3]} 48. Qf5+ {[%clk 0:00:19.1]}
48... Kh6 {[%clk 0:00:17.2]} 49. Qg5# {[%clk 0:00:19.3]} 1-0

[Event "Early-Titled-Tuesday-Blitz-January-16-2024"]
[Site "Chess.com"]
[Date "2024.01.16"]
[Round "3"]
[White "Kopytkin"]
[Black "Zohid6"]
[Result "0-1"]
[WhiteElo "2386"]
[BlackElo "2817"]
[TimeControl "180+1"]
[EndTime "8:29:11 PST"]
[Termination "Zohid6 won on time"]

1. e4 {[%clk 0:03:00.9]} 1... e5 {[%clk 0:03:00.2]} 2. Nf3 {[%clk 0:03:00.1]}
2... Nf6 {[%clk 0:02:57.9]} 3. Nc3 {[%clk 0:02:59.2]} 3... Nc6 {[%clk
0:02:57.6]} 4. a3 {[%clk 0:02:31.9]} 4... d5 {[%clk 0:02:56.7]} 5. exd5 {[%clk
0:02:31.6]} 5... Nxd5 {[%clk 0:02:57.6]} 6. Bb5 {[%clk 0:02:31.5]} 6... Nxc3
{[%clk 0:02:58]} 7. bxc3 {[%clk 0:02:31.3]} 7... Bd6 {[%clk 0:02:58.5]} 8. d4
{[%clk 0:02:29.9]} 8... exd4 {[%clk 0:02:59.4]} 9. cxd4 {[%clk 0:02:27]} 9...
O-O {[%clk 0:02:59.8]} 10. O-O {[%clk 0:02:26.7]} 10... Bg4 {[%clk 0:03:00.2]}
11. Be2 {[%clk 0:02:25.6]} 11... Qf6 {[%clk 0:02:59.3]} 12. c3 {[%clk
0:02:25.5]} 12... h6 {[%clk 0:02:57.5]} 13. h3 {[%clk 0:02:25.6]} 13... Bh5
{[%clk 0:02:57.5]} 14. Rb1 {[%clk 0:02:22]} 14... Rab8 {[%clk 0:02:52.3]} 15.
Re1 {[%clk 0:02:21.2]} 15... Rfe8 {[%clk 0:02:51.5]} 16. Rb5 {[%clk 0:02:07.9]}
16... Bg6 {[%clk 0:02:46.1]} 17. Bf1 {[%clk 0:01:56.5]} 17... b6 {[%clk
0:02:33.9]} 18. Bd3 {[%clk 0:01:41.9]} 18... Rxe1+ {[%clk 0:02:30.7]} 19. Nxe1
{[%clk 0:01:41.2]} 19... Re8 {[%clk 0:02:30.6]} 20. Nf3 {[%clk 0:01:36.9]} 20...
Na5 {[%clk 0:02:24.2]} 21. Be3 {[%clk 0:01:34]} 21... Bxd3 {[%clk 0:02:14.4]}
22. Qxd3 {[%clk 0:01:33.6]} 22... Bxa3 {[%clk 0:02:14.8]} 23. Ne5 {[%clk
0:01:33.6]} 23... Bd6 {[%clk 0:02:13.8]} 24. f4 {[%clk 0:01:33.5]} 24... Qe6
{[%clk 0:02:09.6]} 25. f5 {[%clk 0:01:22.7]} 25... Qa2 {[%clk 0:02:07.2]} 26. f6
{[%clk 0:01:20]} 26... a6 {[%clk 0:01:24.9]} 27. Rb1 {[%clk 0:00:32.6]} 27...
Bxe5 {[%clk 0:01:20.2]} 28. dxe5 {[%clk 0:00:32.4]} 28... Nc4 {[%clk 0:01:18.9]}
29. Bf4 {[%clk 0:00:22.9]} 29... Nxe5 {[%clk 0:01:07.5]} 30. Bxe5 {[%clk
0:00:20]} 30... Rxe5 {[%clk 0:01:08.4]} 31. fxg7 {[%clk 0:00:16.2]} 31... Qd5
{[%clk 0:01:03.1]} 32. Qg3 {[%clk 0:00:11.9]} 32... Rg5 {[%clk 0:01:01.8]} 33.
Qf2 {[%clk 0:00:10.4]} 33... Qc5 {[%clk 0:01:01.9]} 34. Ra1 {[%clk 0:00:03.4]}
34... a5 {[%clk 0:01:00.9]} 35. Qxc5 {[%clk 0:00:02.4]} 35... Rxc5 {[%clk
0:01:00.8]} 36. Ra3 {[%clk 0:00:03.3]} 36... Kxg7 {[%clk 0:01:01.1]} 37. Kf2
{[%clk 0:00:04.2]} 37... h5 {[%clk 0:01:00.5]} 38. Ke3 {[%clk 0:00:04.5]} 38...
Kf6 {[%clk 0:00:59]} 39. Kd4 {[%clk 0:00:04]} 39... Ke6 {[%clk 0:00:56.2]} 40.
g3 {[%clk 0:00:03.3]} 40... Rd5+ {[%clk 0:00:55.8]} 41. Ke4 {[%clk 0:00:03.2]}
41... Re5+ {[%clk 0:00:54.3]} 42. Kd4 {[%clk 0:00:03]} 42... Re2 {[%clk
0:00:54.5]} 43. c4 {[%clk 0:00:02.7]} 43... f5 {[%clk 0:00:49.3]} 44. c5 {[%clk
0:00:02.6]} 44... Re4+ {[%clk 0:00:47.6]} 45. Kd3 {[%clk 0:00:02.5]} 45... Rb4
{[%clk 0:00:45]} 46. cxb6 {[%clk 0:00:01.5]} 46... cxb6 {[%clk 0:00:45.9]} 0-1

[Event "Early-Titled-Tuesday-Blitz-January-16-2024"]
[Site "Chess.com"]
[Date "2024.01.16"]
[Round "3"]
[White "Adar_07"]
[Black "LevonAronian"]
[Result "0-1"]
[WhiteElo "2668"]
[BlackElo "3113"]
[TimeControl "180+1"]
[EndTime "8:29:12 PST"]
[Termination "LevonAronian won on time"]

1. e4 {[%clk 0:03:00.9]} 1... c5 {[%clk 0:03:00]} 2. Nf3 {[%clk 0:03:00.8]} 2...
e6 {[%clk 0:03:00.5]} 3. d4 {[%clk 0:03:00.9]} 3... cxd4 {[%clk 0:03:00.7]} 4.
Nxd4 {[%clk 0:03:01.8]} 4... Nc6 {[%clk 0:03:01.2]} 5. Nc3 {[%clk 0:03:01.5]}
5... Qc7 {[%clk 0:03:01.6]} 6. Be3 {[%clk 0:03:01.2]} 6... a6 {[%clk 0:03:01.4]}
7. Qf3 {[%clk 0:03:00.8]} 7... Nf6 {[%clk 0:03:01.3]} 8. O-O-O {[%clk
0:03:00.9]} 8... Ne5 {[%clk 0:02:57.2]} 9. Qg3 {[%clk 0:02:58.2]} 9... b5 {[%clk
0:02:56.9]} 10. Bxb5 {[%clk 0:02:57.7]} 10... axb5 {[%clk 0:02:56]} 11. Ndxb5
{[%clk 0:02:57.8]} 11... Qb8 {[%clk 0:02:55.6]} 12. Bf4 {[%clk 0:02:47]} 12...
d6 {[%clk 0:02:55.4]} 13. Rxd6 {[%clk 0:02:47.1]} 13... Bxd6 {[%clk 0:02:54.9]}
14. Nxd6+ {[%clk 0:02:42.3]} 14... Qxd6 {[%clk 0:02:54.4]} 15. Bxe5 {[%clk
0:02:31.5]} 15... Qc5 {[%clk 0:02:38.9]} 16. Rd1 {[%clk 0:00:49.1]} 16... Ng4
{[%clk 0:00:50]} 17. Bd6 {[%clk 0:00:17.3]} 17... Qg5+ {[%clk 0:00:39.9]} 18. f4
{[%clk 0:00:17.5]} 18... Qg6 {[%clk 0:00:40.2]} 19. Nb5 {[%clk 0:00:16.3]} 19...
f6 {[%clk 0:00:37.9]} 20. Qc3 {[%clk 0:00:08.7]} 20... Qxe4 {[%clk 0:00:28.1]}
21. h3 {[%clk 0:00:04.4]} 21... Nf2 {[%clk 0:00:18]} 22. Re1 {[%clk 0:00:04]}
22... Qb7 {[%clk 0:00:13.4]} 23. Nc7+ {[%clk 0:00:03]} 23... Kf7 {[%clk
0:00:13.3]} 24. Nxa8 {[%clk 0:00:03.6]} 24... Qxa8 {[%clk 0:00:12.9]} 25. Qc7+
{[%clk 0:00:04.3]} 25... Kg6 {[%clk 0:00:13.1]} 26. g4 {[%clk 0:00:03.4]} 26...
Qd5 {[%clk 0:00:10.6]} 27. Bb4 {[%clk 0:00:01.9]} 27... h5 {[%clk 0:00:09]} 28.
gxh5+ {[%clk 0:00:01.7]} 28... Kh7 {[%clk 0:00:07.7]} 29. Rg1 {[%clk 0:00:02.2]}
29... Rg8 {[%clk 0:00:07.5]} 30. h6 {[%clk 0:00:02.3]} 30... Kxh6 {[%clk
0:00:07.7]} 31. Bf8 {[%clk 0:00:02.6]} 31... Kh5 {[%clk 0:00:04.5]} 32. Bxg7
{[%clk 0:00:02]} 32... e5 {[%clk 0:00:03.2]} 33. fxe5 {[%clk 0:00:01.7]} 33...
fxe5 {[%clk 0:00:03.6]} 34. Qe7 {[%clk 0:00:01.9]} 34... Nxh3 {[%clk 0:00:03.8]}
0-1

[Event "Early-Titled-Tuesday-Blitz-January-16-2024"]
[Site "Chess.com"]
[Date "2024.01.16"]
[Round "3"]
[White "Kotofeyca"]
[Black "Kaissa10"]
[Result "0-1"]
[WhiteElo "2434"]
[BlackElo "2239"]
[TimeControl "180+1"]
[EndTime "8:29:12 PST"]
[Termination "Kaissa10 won on time"]

1. d4 {[%clk 0:03:00.9]} 1... d5 {[%clk 0:02:59.7]} 2. c4 {[%clk 0:03:01]} 2...
e6 {[%clk 0:03:00]} 3. Nc3 {[%clk 0:03:01.6]} 3... h6 {[%clk 0:03:00.1]} 4. Nf3
{[%clk 0:03:00.9]} 4... Nf6 {[%clk 0:03:00]} 5. Bf4 {[%clk 0:03:00.1]} 5... Bd6
{[%clk 0:03:00.1]} 6. Bxd6 {[%clk 0:02:56.4]} 6... Qxd6 {[%clk 0:02:59.7]} 7. e3
{[%clk 0:02:56.6]} 7... O-O {[%clk 0:02:59.3]} 8. Rc1 {[%clk 0:02:38.7]} 8... c6
{[%clk 0:02:55.9]} 9. a3 {[%clk 0:02:36.8]} 9... Nbd7 {[%clk 0:02:52.3]} 10. b4
{[%clk 0:02:36.4]} 10... dxc4 {[%clk 0:02:50.4]} 11. Bxc4 {[%clk 0:02:35.7]}
11... Nd5 {[%clk 0:02:51]} 12. O-O {[%clk 0:02:31.8]} 12... a5 {[%clk
0:02:42.8]} 13. Ne4 {[%clk 0:01:39.8]} 13... Qe7 {[%clk 0:02:36.8]} 14. b5
{[%clk 0:01:39.7]} 14... N7b6 {[%clk 0:02:17.9]} 15. bxc6 {[%clk 0:01:31.3]}
15... bxc6 {[%clk 0:02:18.4]} 16. Be2 {[%clk 0:01:09.8]} 16... Qxa3 {[%clk
0:02:03.7]} 17. Rxc6 {[%clk 0:01:08]} 17... Bb7 {[%clk 0:01:58.5]} 18. Rc5
{[%clk 0:01:02.8]} 18... Nxe3 {[%clk 0:01:45.1]} 19. fxe3 {[%clk 0:00:36]} 19...
Bxe4 {[%clk 0:01:43.8]} 20. Qd2 {[%clk 0:00:27.4]} 20... Nd5 {[%clk 0:01:43.2]}
21. Ne5 {[%clk 0:00:13.9]} 21... Qxe3+ {[%clk 0:01:37.7]} 22. Qxe3 {[%clk
0:00:13.7]} 22... Nxe3 {[%clk 0:01:38.6]} 23. Ra1 {[%clk 0:00:12]} 23... Nc2
{[%clk 0:01:32.8]} 24. Raxa5 {[%clk 0:00:10]} 24... Nxd4 {[%clk 0:01:30.6]} 25.
Bd1 {[%clk 0:00:08.8]} 25... Rxa5 {[%clk 0:01:27]} 26. Rxa5 {[%clk 0:00:09.7]}
26... Nc6 {[%clk 0:01:23.9]} 27. Rc5 {[%clk 0:00:08.1]} 27... Nxe5 {[%clk
0:01:22]} 28. Rxe5 {[%clk 0:00:09]} 28... Rd8 {[%clk 0:01:20.9]} 29. Be2 {[%clk
0:00:07.9]} 29... Bf5 {[%clk 0:01:17.5]} 30. Kf2 {[%clk 0:00:07.8]} 30... Kf8
{[%clk 0:01:09.6]} 31. Ra5 {[%clk 0:00:07.7]} 31... Ke7 {[%clk 0:01:07.5]} 32.
Ke3 {[%clk 0:00:08.2]} 32... Rb8 {[%clk 0:01:05.5]} 33. g4 {[%clk 0:00:07.7]}
33... Rb3+ {[%clk 0:00:52.5]} 34. Kf4 {[%clk 0:00:07.6]} 34... g5+ {[%clk
0:00:44.4]} 35. Ke5 {[%clk 0:00:05]} 35... Re3+ {[%clk 0:00:43.7]} 36. Kd4
{[%clk 0:00:05.2]} 36... Re4+ {[%clk 0:00:42.6]} 37. Kd3 {[%clk 0:00:04.9]}
37... Ra4+ {[%clk 0:00:42.3]} 38. gxf5 {[%clk 0:00:05.2]} 38... Rxa5 {[%clk
0:00:42.6]} 39. fxe6 {[%clk 0:00:05.2]} 39... fxe6 {[%clk 0:00:43.5]} 40. Bh5
{[%clk 0:00:05.1]} 40... Kf6 {[%clk 0:00:43.8]} 41. Ke4 {[%clk 0:00:05.3]} 41...
g4 {[%clk 0:00:41.8]} 42. Be8 {[%clk 0:00:03.9]} 42... Kg5 {[%clk 0:00:40.6]}
43. Ke3 {[%clk 0:00:02.2]} 43... Ra3+ {[%clk 0:00:38.8]} 44. Ke4 {[%clk
0:00:02.5]} 44... h5 {[%clk 0:00:38.8]} 45. Bd7 {[%clk 0:00:02.2]} 45... h4
{[%clk 0:00:38.1]} 46. Bxe6 {[%clk 0:00:01.9]} 46... g3 {[%clk 0:00:38.2]} 47.
hxg3 {[%clk 0:00:01.6]} 47... hxg3 {[%clk 0:00:39.1]} 0-1